Cogmind - Beta 12 *** ADVENTURER MODE // 2023.10.19 @ 20:58:47 Player: Occam Result: Destroyed by 8R-AWN with 8R-AWN's Boregun Performance ------------- Evolutions (0) 0 Regions Visited (3) 600 Robots Destroyed (24) 120 Value Destroyed (482) 482 Prototype IDs (2) 40 Alien Tech Used (0) 0 Bonus (-596) -596 TOTAL SCORE: 646 Bonus ------- Friendly Fire -596 Cogmind --------- Core Integrity 0/250 Matter 140/300 Energy 195/250 System Corruption 0% Temperature Hot (229) Movement Core (850) Ox16 Location -10/Exiles Parts ------- > --- POWER (1) -------- Ion Engine > --- PROPULSION (2) --- (None) > --- UTILITY (2) ------ High-capacity Storage Unit Seismic Detector > --- WEAPON (2) ------- Particle Gun Assault Rifle > --- INVENTORY (20) --- Light Nuclear Core Wheel Wheel Compact Wheel Heat Sink Improved Heat Sink Large Storage Unit High-capacity Storage Unit Huge Storage Unit High-capacity Matter Pod (200) Signal Interpreter Targeting Computer System Purifier Splice Drone Bay Medium Laser Peak State ------------ > --- POWER ------------ Ion Engine > --- PROPULSION ------- Light Treads Wheel > --- UTILITY ---------- High-capacity Storage Unit Seismic Detector > --- WEAPON ----------- Beam Cannon Assault Rifle > --- INVENTORY -------- Ion Engine Light Nuclear Core Light Treads Wheel Compact Wheel Heat Sink Improved Heat Sink Large Storage Unit High-capacity Storage Unit Huge Storage Unit High-capacity Matter Pod Signal Interpreter Targeting Computer Splice Drone Bay Medium Laser Particle Gun Assault Rifle Assault Rifle Grenade Launcher [Rating: 10] Favorites ----------- Power Ion Engine Engine Ion Engine Propulsion Light Treads Treads Light Treads Wheel Wheel Utility Seismic Detector Device Seismic Detector Storage High-capacity Storage Unit Weapon Assault Rifle Energy Gun Particle Gun Energy Cannon Beam Cannon Ballistic Gun Assault Rifle Launcher Grenade Launcher Build | -11 -10 -10 -10 ------- Run | Jun Mat Min Exi Slots Evolved . | . . . . Power . | . . . . Propulsion . | . . . . Utility . | . . . . Weapon . | . . . . Parts Attached 25 | 7 8 1 9 Power 4 | 1 2 . 1 Engine 4 | 1 2 . 1 Core . | . . . . Reactor . | . . . . Propulsion 4 | 2 1 . 1 Treads 3 | 1 1 . 1 Leg . | . . . . Wheel 1 | 1 . . . Hover . | . . . . Flight . | . . . . Utility 4 | 2 2 . . Device 1 | 1 . . . Storage 3 | 1 2 . . Processor . | . . . . Hackware . | . . . . Protection . | . . . . Artifact . | . . . . Weapon 13 | 2 3 1 7 Energy Gun 4 | . 2 . 2 Energy Cannon 1 | . 1 . . Ballistic Gun 6 | 2 . . 4 Ballistic Cannon . | . . . . Launcher 2 | . . 1 1 Special Weapon . | . . . . Impact Weapon . | . . . . Slashing Weapon . | . . . . Piercing Weapon . | . . . . Special Melee Weapon . | . . . . Unidentified Prototypes . | . . . . Parts Lost 8 | . 1 . 7 Power 2 | . 1 . 1 Propulsion 2 | . . . 2 Utility . | . . . . Weapon 4 | . . . 4 Highest Loss Streak 6 | . 1 . 6 To Critical Strikes 4 | . . . 4 Average Slot Usage (%) 99 | . 99 100 98 Engine 13 | . 13 14 13 Treads 14 | . 14 14 14 Wheel 13 | . 14 14 12 Device 14 | . 14 14 14 Storage 14 | . 14 14 14 Energy Gun 5 | . 9 . . Energy Cannon 7 | . 2 14 13 Ballistic Gun 9 | . 15 7 2 Launcher 4 | . . 6 11 Naked Turns . | . . . . Heaviest Build 52 | 12 51 52 52 Greatest Support 40 | 10 10 10 40 Greatest Overweight (x) 5 | 1 5 5 5 Average Overweight (x) 3 | . 3 5 4 Largest Inventory Capacity 20 | 8 20 20 20 Average Capacity 17 | 6 14 20 20 Most Carried 20 | 3 18 19 20 Average Carried 14 | 2 11 18 18 Final Capacity 20 | 8 20 20 20 Final Carried 19 | 3 18 19 15 Class Distribution -------------------- 100% | Mutant Dominant Class ---------------- Mutant | -10/Materials Mutant | -10/Mines Mutant | -10/Exiles Resources | -11 -10 -10 -10 ----------- Run | Jun Mat Min Exi Matter Collected 851 | 196 588 18 49 Remotely . | . . . . Salvage Created 656 | 15 540 40 61 Parts 56 | 5 36 2 13 Haulers Intercepted 1 | . 1 . . Recyclers Shooed . | . . . . Parts Field Recycled . | . . . . Retrieved Matter . | . . . . Parts Self-Destructed . | . . . . Prevented . | . . . . Kills | -11 -10 -10 -10 ------- Run | Jun Mat Min Exi Combat Hostiles Destroyed 23 | . 13 3 7 Guns 13 | . 12 . 1 Cannons 5 | . 1 3 1 AOE 5 | . . . 5 Classes Destroyed 7 | 1 5 . 1 Worker 2 | . 2 . . Tunneler 1 | 1 . . . Hauler 1 | . 1 . . Watcher 3 | . 3 . . Swarmer 6 | . 3 3 . Grunt 10 | . 10 . . Assembled 7 | . . . 7 Best Kill Streak 7 | 1 3 3 7 Combat Bots Only 7 | . 3 3 7 Max Kills in Single Turn 2 | 1 1 1 2 Gunslinging . | . . . . Exploded 2 | . . . 2 Melee . | . . . . Uniques/NPCs Destroyed 1 | . . . 1 EX-BIN (-10/Exiles) Combat | -11 -10 -10 -10 -------- Run | Jun Mat Min Exi Damage Taken 1291 | . 399 71 821 Core 255 | . 62 20 173 Absorbed by Shields . | . . . . Regen/Repaired (Parts) 85 | . 85 . . Core Remaining (%) 100 | 100 . . . Volleys Fired 109 | 2 62 6 39 Largest 2 | 2 2 2 2 Hottest 85 | 40 85 80 85 Shots Fired 211 | 4 122 12 73 Gun 179 | 4 117 6 52 Cannon 29 | . 5 6 18 Launcher 3 | . . . 3 Special . | . . . . Kinetic 126 | 4 78 6 38 Thermal 82 | . 44 6 32 Explosive 3 | . . . 3 Electromagnetic . | . . . . Robot Hit Streak 31 | 1 31 15 24 Robot Miss Streak 2 | 2 2 . 2 Penetration Max . | . . . . Secondary Targets 1 | . 1 . . Max Gunslinging Chain 1 | . 1 . . Shots Hit Robots 167 | 1 97 9 60 Core Hits 59 | 1 30 3 25 Critical Kills 1 | . 1 . . Critical Parts Destroyed . | . . . . Critical Strikes 2 | . 2 . . Burn 1 | . 1 . . Destroy 1 | . 1 . . Melee Attacks . | . . . . Impact . | . . . . Slashing . | . . . . Piercing . | . . . . Sneak Attacks . | . . . . Combat Hostiles . | . . . . Follow-up Attacks . | . . . . Damage Inflicted 2282 | 12 1355 149 766 Guns 1737 | 12 1283 37 405 Cannons 248 | . 72 112 64 Explosions 297 | . . . 297 Melee . | . . . . Ramming . | . . . . Kinetic 1154 | 12 713 37 392 Thermal 831 | . 642 112 77 Explosive 297 | . . . 297 Electromagnetic . | . . . . Impact . | . . . . Slashing . | . . . . Piercing . | . . . . Highest Corruption . | . . . . Average Corruption . | . . . . Corruption Purged . | . . . . Corruption Blocked . | . . . . Overload Shots . | . . . . Overflow Damage 8 | . . . 8 Projectiles . | . . . . Explosions 8 | . . . 8 Melee . | . . . . Knockbacks . | . . . . Impact . | . . . . Kinetic . | . . . . Secondary . | . . . . Self-Inflicted Damage 8 | . . . 8 Shots 1 | . . . 1 Rammed . | . . . . Targets Rammed . | . . . . Kicked . | . . . . Crushed . | . . . . Highest Temperature 330 | . 330 108 229 Average Temperature 73 | . 68 55 86 Received Heat Transfer 399 | . 279 . 120 Siege Activations . | . . . . Robots Corrupted . | . . . . Combat Hostiles . | . . . . Parts Fried . | . . . . Impact Corruptions . | . . . . Robots Melted . | . . . . Combat Hostiles . | . . . . Parts Melted 5 | . 3 1 1 Heat Transferred 2066 | . 1517 222 327 Parts Sabotaged . | . . . . Parts Stolen . | . . . . Parts Stripped . | . . . . Power Chain Reactions . | . . . . Missiles Intercepted . | . . . . Alert | -11 -10 -10 -10 ------- Run | Jun Mat Min Exi Peak Influence 292 | 5 292 118 . Initial 41 | . 2 41 . Average 90 | 1 88 112 . Maximum Alert Level 1 | . 1 . . Low Security (%) 93 | 100 92 100 . Level 1 6 | . 7 . . Level 2 . | . . . . Level 3 . | . . . . Level 4 . | . . . . Level 5 . | . . . . High Security . | . . . . Max Security . | . . . . Squads Dispatched 4 | . 4 . . Investigation 4 | . 4 . . Extermination . | . . . . Reinforcement . | . . . . Assault . | . . . . Garrison . | . . . . Intercept . | . . . . Searches Triggered . | . . . . Construction Impeded . | . . . . Haulers Reinforced . | . . . . Active Scanning Responses . | . . . . Cargo Convoy Interrupts . | . . . . Stealth | -11 -10 -10 -10 --------- Run | Jun Mat Min Exi Distress Signals 2 | . 2 . . Communications Jammed . | . . . . Distress Signals . | . . . . Times Spotted 33 | . 23 2 8 Peak Tracking Total 9 | . 4 2 9 Tactical Retreats 3 | . 3 . . Traps | -11 -10 -10 -10 ------- Run | Jun Mat Min Exi Traps Triggered 2 | . 2 . . Indirectly . | . . . . Trap Hack Attempts . | . . . . Triggered . | . . . . Disarmed . | . . . . Reprogrammed . | . . . . Reused . | . . . . Traps Extracted . | . . . . Installed . | . . . . Triggered . | . . . . Machines | -11 -10 -10 -10 ---------- Run | Jun Mat Min Exi Machines Disabled 5 | . 1 . 4 Max in Single Turn 1 | . 1 . 1 Machines Repaired . | . . . . Machines Sabotaged . | . . . . Overloaded Fab Kills . | . . . . Hacking | -11 -10 -10 -10 --------- Run | Jun Mat Min Exi Machines Accessed 16 | . 11 2 3 Terminals 9 | . 8 1 . Fabricators . | . . . . Repair Stations 1 | . 1 . . Recycling Units 2 | . 2 . . Scanalyzers . | . . . . Garrison Access . | . . . . Total Hacks 66 | . 33 7 26 Successful 53 | . 23 4 26 Failed 13 | . 10 3 . Catastrophic 2 | . 2 . . Database Lockouts . | . . . . Manual 25 | . 21 4 . Terminals 30 | . 24 6 . Fabricators . | . . . . Repair Stations 4 | . 4 . . Recycling Units 5 | . 5 . . Scanalyzers . | . . . . Garrison Access . | . . . . Terminal Hacks 41 | . 11 4 26 Record 26 | . . . 26 Robot Analysis 5 | . 5 . . Prototype ID Bank 1 | . 1 . . Open Door 1 | . . 1 . Level Access Points 1 | . . 1 . Branch Access Points 1 | . . 1 . Terminal Index 1 | . 1 . . Alert Level 1 | . 1 . . Locate Traps 1 | . 1 . . Dispatch Records 1 | . 1 . . Hauler Manifests 1 | . 1 . . Zone Layout 1 | . . 1 . Fabricator Hacks . | . . . . Repair Station Hacks 4 | . 4 . . Scan Component 2 | . 2 . . Repair 2 | . 2 . . Recycling Unit Hacks 3 | . 3 . . Report Inventory 2 | . 2 . . Retrieve Components 1 | . 1 . . Scanalyzer . | . . . . Garrison Access Hacks . | . . . . Unauthorized Hacks 5 | . 5 . . Terminals 3 | . 3 . . Botnet 3 | . 3 . . Fabricators . | . . . . Repair Stations . | . . . . Recycling Units 2 | . 2 . . Tunnel 2 | . 2 . . Scanalyzers . | . . . . Garrison Access . | . . . . Data Cores Recovered . | . . . . Used . | . . . . Hacking Detections 10 | . 9 1 . Full Trace Events 2 | . 2 . . Feedback Events . | . . . . Feedback Blocked . | . . . . Robot Schematics Acquired . | . . . . Robots Built . | . . . . Authchips . | . . . . Time . | . . . . Total Robot Build Rating . | . . . . Part Schematics Acquired . | . . . . Parts Built . | . . . . Authchips . | . . . . Time . | . . . . Total Part Build Rating . | . . . . Parts Repaired 2 | . 2 . . Time 58 | . 58 . . Parts Recycled . | . . . . Recycled Matter . | . . . . Retrieved Matter . | . . . . Retrieved Components 9 | . 9 . . Parts Scanalyzed . | . . . . Part Schematics Acquired . | . . . . Parts Damaged . | . . . . Bothacking | -11 -10 -10 -10 ------------ Run | Jun Mat Min Exi Used RIF Installer . | . . . . Robots Hacked . | . . . . Non-combat . | . . . . Combat . | . . . . Robot Hacks Applied . | . . . . Relay Couplers Released . | . . . . Fabnet Peak Effective % . | . . . . Robots Rewired . | . . . . Allies Hacked . | . . . . Hacks Repelled . | . . . . Allies | -11 -10 -10 -10 -------- Run | Jun Mat Min Exi Total Allies . | . . . . Largest Group . | . . . . Highest-Rated Group . | . . . . Highest-Rated Ally . | . . . . Total Orders . | . . . . Ally Attacks . | . . . . Total Damage . | . . . . Kills . | . . . . Allies Corrupted . | . . . . Allies Melted . | . . . . Intel | -11 -10 -10 -10 ------- Run | Jun Mat Min Exi Robot Analysis Total 5 | . 5 . . Derelict Logs Recovered . | . . . . Drone Launches . | . . . . Drone Recoveries . | . . . . Exploration | -11 -10 -10 -10 ------------- Run | Jun Mat Min Exi Turns Passed 2919 | 63 1514 337 1005 Spaces Moved 1761 | 51 945 205 560 Core 2 | 2 . . . Treads 10 | . . . 10 Legs . | . . . . Wheels 1749 | 49 945 205 550 Hover . | . . . . Flight . | . . . . Fastest Speed 50 | 50 95 155 155 Average Speed 138 | 87 127 155 156 Slowest Speed 240 | 95 155 155 240 Overloaded Moves . | . . . . Propulsion Burnouts . | . . . . Robots Hopped . | . . . . Cave-ins Triggered . | . . . . Exploration Rate (%) 56 | 3 98 38 88 Regions Visited 3 Branch Regions 2 Pre-discovered Areas 2 | . 2 . . Known Exits Taken . | . . . . Unknown Exits Taken 3 | 1 1 1 . Scrap Searched 1 | . . 1 . Spaces Dug . | . . . . Terrain Destroyed 10 | . 6 . 4 Melee . | . . . . Projectile . | . . . . AOE 10 | . 6 . 4 Terrain Rammed . | . . . . Walls Destroyed . | . . . . Machines Disabled . | . . . . Actions | -11 -10 -10 -10 --------- Run | Jun Mat Min Exi Total 2029 | 62 1139 212 616 Wait 105 | . 98 . 7 Move 1758 | 50 944 204 560 Hop . | . . . . Pick Up 23 | 3 18 1 1 Fast Attach 11 | 7 4 . . Attach 6 | . 1 . 5 Detach 2 | . 2 . . Swap 8 | . 3 1 4 Drop 7 | . 7 . . Fire 109 | 2 62 6 39 Melee . | . . . . Ram . | . . . . Kick . | . . . . Crush . | . . . . Escape Stasis . | . . . . Rewire . | . . . . Trap . | . . . . Miscellaneous . | . . . . Route ------- -11/Junkyard -10/Materials (discovered 5 exits: *Mat x3 / *Min x2) -10/Mines (discovered 3 exits: Mat x2 / *Exi) -10/Exiles (discovered 1 exit: [*Min]) History --------- Turn | Location | Event 16 | -11/Junkyard | Discovered new exit (range 15) 64 | -11/Junkyard | Entered Materials 84 | -10/Materials | Discovered new exit (range 5) 306 | -10/Materials | Build established: Mutant 351 | -10/Materials | Discovered new exit (range 5) 558 | -10/Materials | Repaired Particle Gun 585 | -10/Materials | Repaired Ion Engine 716 | -10/Materials | Discovered new exit (range 3) 1007 | -10/Materials | Discovered new exit (range 15) 1247 | -10/Materials | Discovered new exit (range 13) 1578 | -10/Materials | Entered Mines 1649 | -10/Mines | Found the Drone Emporium 1654 | -10/Mines | Found Prototype Device 1668 | -10/Mines | Assembled infested the area 1762 | -10/Mines | Identified exit to Materials 1907 | -10/Mines | Deemed a non-threat by the Exiles lab entrance 1907 | -10/Mines | Discovered new exit (range 5) 1915 | -10/Mines | Entered Exiles 1954 | -10/Exiles | Met 8R-AWN 1979 | -10/Exiles | Met EX-HEX 2026 | -10/Exiles | Met EX-BIN 2205 | -10/Exiles | Met EX-DEC 2261 | -10/Exiles | Visited The Gauntlet 2536 | -10/Exiles | Discovered new exit (range 14) 2783 | -10/Exiles | Destroyed EX-BIN 2784 | -10/Exiles | Attacked by the Exiles 2794 | -10/Exiles | Found Prototype Device 2837 | -10/Exiles | Destroyed 7 combat bots 2844 | -10/Exiles | Core integrity fell below 50% 2867 | -10/Exiles | Core integrity fell below 20% 2920 | -10/Exiles | Destroyed by 8R-AWN with 8R-AWN's Boregun Last Messages --------------- 02895_ HV Slug penetrates FarCom Aligner. 02899_ Penetrated by HV Slug. 02899_ HV Slug penetrates FarCom Aligner. 02899_ Penetrated by HV Slug. 02899_ Critical hit (Destroy). 02899_ Lgt. Treads destroyed. 02899_ HV Slug penetrates Wall. 02903_ Penetrated by HV Slug. 02903_ HV Slug penetrates Wall. 02903_ Penetrated by HV Slug. 02903_ HV Slug penetrates Earth. 02908_ Penetrated by HV Slug. 02908_ HV Slug penetrates Earth. 02908_ Penetrated by HV Slug. 02908_ HV Slug penetrates Earth. 02912_ Penetrated by HV Slug. 02912_ HV Slug penetrates FarCom Aligner. 02916_ Penetrated by HV Slug. 02916_ HV Slug penetrates Wall. 02920_ Penetrated by HV Slug. Map ----- +----------------------------------------------------+ | ?????????????#X #????????????????????????????? | | ??????????????# #????????????????????????????? | | ??????????????# #????????????????????????????? | | ??????????????# #########????????????????????? | | ??????????????# ##""""""#????????????????????? | | ??????????????# ## """#????????????????????? | | ??????????????# X""#????????????????????? | | ??????????????# ## """#????????????????????? | | ??????######### ##""""""#????????????????????? | | ??????#""""""## #########????????????????????? | | ??????#"""" ## #????????????????????????????? | | ??????#""X" #????????????????????????????? | | ??????#" #????????????????????????????? | | ??????#" ## #????????????????????????????? | | ??????#""""""## #?########???????????????????? | | ??????##"###### #?#"""""""???????????????????? | | ?????? "#????# #?#"""""""#????? ???????????? | | ?????""" #????# #?#"""" ""#???? ???????????? | | ????#""" #???## ###"" " ""#??# #???????????? | | ??????"" #???#" "#? ?????????????? | | ???????###???#" =!"" # #??????????????? | | ?????????????#" !!! ";;;????????????????? | | ?????????????#" =! ;#?????????????????? | | ?????????????# ! #??????????????????? | | ?????????????#" ! ## ""??????????????? | | ? ""?????????## @ """ ??????????????? | | " ?????????# %% """####???????????????? | | " ??????????# g " ""?????????????????? | | " ?????????# " # "????????????????? | | ""????????## "" """""#??????????????????? | | " "?????????# ##########??????????????????? | | # #????????## ????????????????????????????? | | # ###?######" #????????????????????????????? | | # #"###""""""" ##???????????????????????????? | | """""" " " ##???##########?????????????? | | "" """ " #####"""""""""##???????????? | | " " " """ """"##??????????? | | "" " #??????????? | | " """#??????????? | | " "#??????????? | | " "##?????????# | | ""###???????# | | """""" """#??????## | | ######""" "#????### | | ""##????#####""" ##???# | | """##?????????##""" ##?## | | """##???????????#"""" ### | | ""#????????????#"" | | ###?###??????#"""" | | ## ????""" "" | +----------------------------------------------------+ Best States ------------- Heat Dissipation 25 Energy Generation 10 Energy Capacity 250 Matter Stores 300 Matter Capacity 300 Sight Range 16 Terrain Scan Density 10 Resistance: KI 20 Resistance: TH 20 Resistance: EX 20 Resistance: EM 20 Resistance: I 20 Resistance: S 20 Resistance: P 20 Evasion (%) 44 Recoil Reduction 2 Offensive Hacking 10 Item Schematics ----------------- None Robot Schematics ------------------ None Fabricated ------------ Nothing Alien Tech Used ----------------- None Achievements -------------- None Challenges ------------ None Game ------ Seed IonicDispersionProtomatter Manual? 0 Play Time 00:29:05 Cumulative 113.7 hours Start 2023.10.18 @ 20:50:43 End 2023.10.19 @ 20:58:47 Sessions 3 Manual Loads 0 Difficulty Adventurer Special Mode None Game No. 99 Rogue 0 Adventurer 99 Explorer 0 Win Type - Total 1 Types 1/0/0/0/0/0/0/0/0 Lore% 52 Gallery% 53 Achievement% 46 Wizard Run 0 Options --------- ASCII 0 Keyboard 0 Movement Mouse Keybinds 0 Fullscreen 2 Font 20/SmallcapsGlow Map View 66x50 Tactical HUD 1 Map Filters NONE Filters NONE Steam X RUN: d63da27b-0227-4461-8c6e-33900b3e96c4